bitfinex/quotes_BTCUSD_20250211
["timestamp","ask_amount","ask_price","bid_price","bid_amount"]
[1739289684364,0.17063361,97079.0,97078.0,0.004]
[1739289684497,0.01612061,97079.0,97078.0,0.004]
[1739289684718,0.003,97079.0,97078.0,0.12742386]
[1739289684910,0.003,97079.0,97078.0,0.28193786]
[1739289685260,0.0031066,97079.0,97078.0,0.28193786]
[1739289685603,0.0011066,97079.0,97078.0,0.38444151]
[1739289686021,0.0021066,97079.0,97078.0,0.38844151]
[1739289686241,0.09186368,97095.0,97094.0,0.277689]
[1739289686446,0.09186368,97095.0,97094.0,0.38019265]
[1739289686856,0.09186368,97095.0,97094.0,0.37919265]
[1739289687489,0.09286368,97095.0,97094.0,0.38519265]
[1739289687686,0.09286368,97095.0,97094.0,0.37919265]
[1739289688134,0.09386368,97095.0,97094.0,0.38619265]
[1739289688368,0.09186368,97095.0,97094.0,0.37919265]
[1739289689562,0.09386368,97095.0,97094.0,0.40119265]
[1739289689970,0.002,97095.0,97094.0,0.40119265]
[1739289690936,0.001,97095.0,97094.0,0.38619265]
[1739289691117,0.002,97095.0,97094.0,0.40119265]
[1739289693457,0.002,97095.0,97094.0,0.299689]
[1739289693935,0.002,97095.0,97094.0,0.1452]
[1739289695640,0.002,97095.0,97094.0,0.022]
[1739289695979,0.156487,97095.0,97094.0,0.022]
[1739289696619,0.205981,97097.0,97094.0,0.007]
[1739289696620,0.08881908,97097.0,97094.0,0.007]
[1739289696832,0.155487,97095.0,97094.0,0.022]
[1739289696972,0.2122309,97095.0,97094.0,0.015]
[1739289697189,0.2122309,97095.0,97094.0,0.007]
[1739289697389,0.154505,97084.0,97083.0,0.0461]
[1739289697596,0.0577439,97095.0,97094.0,0.015]
[1739289697759,0.3622309,97095.0,97094.0,0.02222386]
[1739289697957,0.3623375,97095.0,97094.0,0.02222386]
[1739289698162,0.46484115,97095.0,97094.0,0.01522386]
[1739289699378,0.46584115,97095.0,97094.0,0.02222386]
[1739289699577,0.46484115,97095.0,97094.0,0.00722386]
[1739289699779,0.46384115,97095.0,97094.0,0.00022386]
[1739289699981,0.46384115,97095.0,97094.0,0.00422386]
[1739289700187,0.3281941,97095.0,97094.0,0.00422386]
[1739289700414,0.38017745,97095.0,97094.0,0.00422386]
[1739289701656,0.38117745,97095.0,97094.0,0.01322386]
[1739289702475,0.38117745,97095.0,97094.0,0.00922386]
[1739289703038,0.70617745,97095.0,97094.0,0.00022386]
[1739289703254,0.70617745,97095.0,97094.0,0.00222386]
[1739289703454,0.70617745,97095.0,97094.0,0.00422386]
[1739289703657,0.70617745,97095.0,97094.0,0.00222386]
[1739289704098,0.70617745,97095.0,97094.0,0.00122386]
[1739289704491,0.70617745,97095.0,97094.0,0.00322386]
[1739289705273,0.6036738,97095.0,97094.0,0.00322386]
[1739289705796,0.4491868,97095.0,97087.0,0.04092385]
[1739289705953,0.154496,97090.0,97087.0,0.04092385]
[1739289706166,0.4491868,97095.0,97087.0,0.04092385]
[1739289706364,0.154494,97091.0,97087.0,0.04092385]
[1739289706571,0.154497,97089.0,97087.0,0.04092385]
[1739289706995,0.304494,97091.0,97087.0,0.04292385]
[1739289707530,0.15,97091.0,97087.0,0.04092385]
[1739289707739,0.154496,97090.0,97087.0,0.04392385]
[1739289707938,0.001,97089.0,97087.0,0.05092385]
[1739289709382,0.001,97089.0,97087.0,0.04792385]
[1739289709690,0.154496,97090.0,97087.0,0.04092385]
[1739289709895,0.154496,97090.0,97087.0,0.04292385]
[1739289710132,0.154496,97090.0,97087.0,0.04592385]
[1739289710451,0.154496,97090.0,97087.0,0.04314771]
[1739289710657,0.154496,97090.0,97087.0,0.04114771]
[1739289710875,0.001,97089.0,97087.0,0.04914771]
[1739289711554,0.16751598,97090.0,97087.0,0.04314771]
[1739289711918,0.21028727,97089.0,97087.0,0.04314771]
[1739289712526,0.21028727,97089.0,97087.0,0.04114771]
[1739289712698,0.21028727,97089.0,97087.0,0.04714771]
[1739289712895,0.154497,97089.0,97087.0,0.05014771]
[1739289713117,0.155496,97090.0,97087.0,0.05014771]
[1739289713294,0.154496,97090.0,97087.0,0.04414771]
[1739289713727,0.001,97089.0,97087.0,0.05014771]
[1739289714151,0.3261066,97095.0,97087.0,0.04414771]
[1739289714561,0.0001066,97095.0,97088.0,0.10250365]
[1739289714757,0.0001066,97095.0,97094.0,0.236189]
[1739289714961,0.0001066,97095.0,97094.0,0.38499265]
[1739289716674,0.0001066,97095.0,97094.0,0.39099265]
[1739289717080,0.0011066,97095.0,97094.0,0.39099265]
[1739289717496,0.0001066,97095.0,97094.0,0.39099265]
[1739289717776,0.0011066,97095.0,97094.0,0.40399265]
[1739289719016,0.0011066,97095.0,97094.0,0.25050365]
[1739289719212,0.0011066,97095.0,97094.0,0.148]
[1739289720307,0.0011066,97095.0,97094.0,0.302489]
[1739289720508,0.0011066,97095.0,97094.0,0.148]
[1739289722263,0.0011066,97095.0,97094.0,0.40602237]
[1739289722438,0.0011066,97095.0,97094.0,0.50741517]
[1739289722838,0.0011066,97095.0,97094.0,0.40499265]
[1739289723262,0.0011066,97095.0,97094.0,0.39199265]
[1739289723441,0.0001066,97095.0,97094.0,0.38599265]
[1739289723898,0.0011066,97095.0,97094.0,0.40799265]
[1739289733192,0.0011066,97095.0,97094.0,0.25350365]
[1739289733427,0.0011066,97095.0,97094.0,0.151]
[1739289733604,0.0011066,97095.0,97094.0,0.15122386]
[1739289736162,0.0011066,97095.0,97094.0,0.06952386]
[1739289736345,0.0011066,97095.0,97094.0,0.02222386]
[1739289746926,0.1555936,97095.0,97094.0,0.02222386]
[1739289747168,0.17216068,97095.0,97094.0,0.02222386]
[1739289747651,0.22270465,97095.0,97094.0,0.01522386]
[1739289747902,0.22170465,97095.0,97094.0,0.00022386]
[1739289748124,0.22170465,97095.0,97094.0,0.01322386]
[1739289748579,0.17116068,97095.0,97094.0,0.01322386]
[1739289748808,0.17116068,97095.0,97094.0,0.00022386]
[1739289749157,0.17116068,97095.0,97094.0,0.00622386]
[1739289750445,0.17216068,97095.0,97094.0,0.01922386]
[1739289750654,0.287477,97098.0,97094.0,0.01922386]
[1739289750857,0.304487,97095.0,97094.0,0.01922386]
[1739289751516,0.304487,97095.0,97094.0,0.00622386]
[1739289751949,0.304487,97095.0,97094.0,0.01722386]
[1739289753709,0.40699065,97095.0,97094.0,0.00622386]
[1739289754119,0.40699065,97095.0,97094.0,0.01922386]
[1739289754380,0.5094943,97095.0,97094.0,0.01922386]
[1739289754579,0.5094943,97095.0,97094.0,0.00622386]
[1739289754991,0.5094943,97095.0,97094.0,0.01222386]
[1739289755180,0.5094943,97095.0,97094.0,0.00622386]
[1739289755414,0.5094943,97095.0,97094.0,0.00322386]
[1739289755617,1.2776033,97095.0,97094.0,8.6e-07]
[1739289755820,0.385813,97079.0,97078.0,0.00022386]
[1739289756022,0.48831665,97079.0,97078.0,0.00022386]
[1739289756155,0.84948175,97079.0,97078.0,0.00022386]
[1739289756368,0.304532,97067.0,97066.0,0.03937392]
[1739289756565,0.154537,97064.0,97063.0,0.00022386]
[1739289757233,0.19399721,97064.0,97063.0,0.00022386]
[1739289758346,0.19399721,97064.0,97063.0,8.6e-07]
[1739289758347,0.59746918,97064.0,97063.0,8.6e-07]
[1739289758578,0.304556,97052.0,97047.0,0.00022407]
[1739289758693,0.40705965,97052.0,97047.0,0.00022407]
[1739289759700,0.40705965,97052.0,97051.0,0.0032]
[1739289759932,0.45059549,97052.0,97051.0,0.0032]
[1739289760577,0.45059549,97052.0,97051.0,0.0082]
[1739289760769,0.15458,97037.0,97036.0,0.04744134]
[1739289760978,0.15458,97037.0,97036.0,0.04753747]
[1739289761188,0.15458,97037.0,97036.0,9.613e-05]
[1739289762221,0.15458,97037.0,97036.0,0.00709613]
[1739289763302,0.001,97037.0,97036.0,0.30397713]
[1739289765135,0.001,97037.0,97036.0,0.40648078]
[1739289766160,0.02025545,97078.0,97036.0,0.22989978]
[1739289766354,0.412056,97074.0,97049.0,0.15456]
[1739289766594,0.154539,97063.0,97049.0,0.15456]
[1739289767125,0.154543,97060.0,97046.0,0.206085]
[1739289767328,0.154543,97060.0,97046.0,0.154564]
[1739289767495,0.154541,97062.0,97047.0,0.154563]
[1739289767703,0.0360593,97061.0,97047.0,0.154563]
[1739289767902,0.1906013,97061.0,97047.0,0.154563]
[1739289768120,0.14259424,97070.0,97049.0,0.005]
[1739289768449,0.15454,97062.0,97049.0,0.005]
[1739289769409,0.15454,97062.0,97048.0,0.154561]
[1739289769608,0.15454,97062.0,97049.0,0.003]
[1739289770187,0.15454,97062.0,97048.0,0.154561]
[1739289770539,0.15454,97062.0,97049.0,0.005]
[1739289770951,0.206049,97065.0,97049.0,0.159559]
[1739289771121,0.0001067,97062.0,97049.0,0.154559]
[1739289771915,0.0001067,97062.0,97048.0,0.154562]
[1739289772141,0.0001067,97062.0,97049.0,0.004]
[1739289772464,0.01714473,97062.0,97049.0,0.158559]
[1739289772610,0.0343129,97062.0,97056.0,0.154549]
[1739289772818,0.0001067,97062.0,97057.0,0.0466]
[1739289773043,0.0001067,97062.0,97061.0,0.154541]
[1739289774023,0.0001067,97062.0,97059.0,0.206058]
[1739289774233,0.0001067,97062.0,97057.0,0.14910365]
[1739289774475,0.0001067,97062.0,97061.0,0.01]
[1739289775473,0.0001067,97062.0,97061.0,0.016]
[1739289775994,0.0001067,97062.0,97061.0,0.006]
[1739289777232,0.0001067,97062.0,97061.0,0.018]
[1739289777967,0.01557027,97062.0,97061.0,0.018]
[1739289778209,0.17011027,97062.0,97061.0,0.018]
[1739289780052,0.18708824,97062.0,97061.0,0.018]
[1739289780360,0.17162467,97062.0,97061.0,0.018]
[1739289780926,0.0001067,97062.0,97061.0,0.018]
[1739289781603,0.1546467,97062.0,97061.0,0.018]
[1739289784534,0.0001067,97062.0,97061.0,0.018]
[1739289787664,0.1546467,97062.0,97061.0,0.018]
[1739289788164,0.19234395,97062.0,97061.0,0.018]
[1739289791494,0.1546467,97062.0,97061.0,0.018]
[1739289794724,0.0001067,97062.0,97061.0,0.018]
[1739289796097,0.0001067,97062.0,97061.0,0.172541]
[1739289796308,0.0001067,97062.0,97061.0,0.251041]
[1739289796514,0.0001067,97062.0,97061.0,0.40204465]
[1739289796720,0.0001067,97062.0,97061.0,0.63346152]
[1739289796935,0.0001067,97062.0,97061.0,0.65646152]
[1739289797351,0.0001067,97062.0,97061.0,0.67669101]
[1739289797540,0.0001067,97062.0,97061.0,0.70800438]
[1739289797744,0.09186368,97091.0,97090.0,0.281495]
[1739289797871,0.09186368,97091.0,97090.0,0.38399865]
[1739289798911,0.09199652,97091.0,97090.0,0.38999865]
[1739289799155,0.09199652,97091.0,97090.0,0.38399865]
[1739289799492,0.09095364,97091.0,97090.0,0.39099865]
[1739289800550,0.09095364,97091.0,97090.0,0.40499865]
[1739289801606,0.00013284,97091.0,97090.0,0.148]
[1739289801793,0.00013284,97091.0,97090.0,0.302495]
[1739289803680,0.00013284,97091.0,97090.0,0.288495]
[1739289803879,0.00013284,97091.0,97090.0,0.303495]
[1739289804079,0.00013284,97091.0,97090.0,0.149]
[1739289804262,0.00013284,97091.0,97090.0,0.015]
[1739289805115,0.01560528,97091.0,97090.0,0.022]
[1739289805317,0.01571198,97091.0,97090.0,0.022]
[1739289805526,0.00023954,97091.0,97090.0,0.022]
[1739289813360,0.00023954,97091.0,97090.0,0.176495]
[1739289813575,0.00023954,97091.0,97090.0,0.35589865]
[1739289813781,0.00023954,97091.0,97090.0,0.40159865]
[1739289813986,0.00023954,97091.0,97090.0,0.44219303]
[1739289814601,0.00023954,97091.0,97090.0,0.42719303]
[1739289814875,0.00023954,97091.0,97090.0,0.39459865]
[1739289815075,0.00023954,97091.0,97090.0,0.40159865]
[1739289815280,0.00023954,97091.0,97090.0,0.421852]
[1739289816006,0.00023954,97091.0,97090.0,0.40159865]
[1739289816216,0.00023954,97091.0,97090.0,0.38659865]
[1739289816419,0.00023954,97091.0,97090.0,0.40159865]
[1739289816628,0.00023954,97091.0,97090.0,0.42243485]
[1739289816774,0.00023954,97091.0,97090.0,0.41543485]
[1739289817194,0.00023954,97091.0,97090.0,0.42243485]
[1739289820939,0.00023954,97091.0,97090.0,0.40182251]
[1739289823053,0.00023954,97091.0,97090.0,0.39482251]
[1739289823191,0.00023954,97091.0,97090.0,0.38682251]
[1739289824149,0.00023954,97091.0,97090.0,0.40182251]
[1739289824345,0.00023954,97091.0,97090.0,0.48320436]
[1739289824569,0.00023954,97091.0,97090.0,0.38682251]
[1739289825018,0.00023954,97091.0,97090.0,0.40182251]
[1739289832763,0.00023954,97091.0,97090.0,0.41146281]
[1739289837984,3.355e-05,97091.0,97090.0,0.41146281]
[1739289841962,3.355e-05,97091.0,97090.0,0.03186416]
[1739289843006,3.355e-05,97091.0,97090.0,0.01686416]
[1739289843213,0.07803355,97091.0,97090.0,0.01686416]
[1739289843414,0.26302071,97091.0,97090.0,0.01522386]
[1739289843850,0.26302071,97091.0,97090.0,0.00722386]
[1739289844054,0.26302071,97091.0,97090.0,0.00022386]
[1739289844267,0.26302071,97091.0,97090.0,0.00722386]
[1739289846012,0.26302071,97091.0,97090.0,0.02222386]
[1739289846214,0.41462436,97091.0,97090.0,0.02222386]
[1739289846438,0.41462436,97091.0,97090.0,0.00722386]
[1739289846645,0.41462436,97091.0,97090.0,0.00022386]
[1739289846846,0.41462436,97091.0,97090.0,0.02122386]
[1739289847051,0.41462436,97091.0,97090.0,0.01422386]
[1739289847257,0.43486853,97091.0,97090.0,0.00022386]
[1739289847466,0.43486853,97091.0,97090.0,0.00222386]
[1739289847765,0.43486853,97091.0,97090.0,0.00022386]
[1739289847997,0.43486853,97091.0,97090.0,0.00222386]
[1739289848185,0.43486853,97091.0,97090.0,0.00422386]
[1739289849441,0.43486853,97091.0,97090.0,0.00222386]
[1739289849640,0.43486853,97091.0,97090.0,0.00522386]
[1739289849870,0.43486853,97091.0,97090.0,0.00122386]
[1739289850071,0.43486853,97091.0,97090.0,0.00222386]
[1739289850275,0.43486853,97091.0,97090.0,0.00122386]
[1739289850497,0.43686853,97091.0,97090.0,0.00022386]
[1739289850658,0.078,97090.0,97068.0,0.03879299]
[1739289850866,0.154529,97069.0,97068.0,0.03879299]
[1739289851272,0.206036,97071.0,97061.0,0.00022407]
[1739289851482,0.154535,97066.0,97061.0,0.00022407]
[1739289851691,0.154532,97067.0,97061.0,0.00022407]
[1739289851899,0.0644603,97066.0,97061.0,0.00022407]
[1739289852943,0.078,97072.0,97061.0,0.00022407]
[1739289853157,0.154536,97065.0,97061.0,0.00022407]
[1739289853355,0.154532,97067.0,97061.0,0.00722407]
[1739289853557,0.14259424,97071.0,97061.0,0.02222407]
[1739289853763,0.14259424,97071.0,97061.0,0.01522407]
[1739289853764,0.15454,97062.0,97061.0,0.01522407]
[1739289854025,0.15454,97062.0,97061.0,0.02222407]
[1739289854241,0.15454,97062.0,97061.0,0.00722407]
[1739289854390,0.15454,97062.0,97061.0,0.01522407]
[1739289854592,0.15454,97062.0,97061.0,0.02222407]
[1739289854803,0.2318077,97062.0,97061.0,0.02222407]
[1739289855582,0.1734902,97062.0,97061.0,0.02222407]
[1739289855997,0.1734902,97062.0,97061.0,0.01522407]
[1739289856205,0.1734902,97062.0,97061.0,0.02222407]
[1739289856379,0.1734902,97062.0,97061.0,0.00722407]
[1739289856823,0.1734902,97062.0,97061.0,0.02222407]
[1739289857023,0.25265292,97062.0,97061.0,0.02222407]
[1739289858592,0.32955292,97062.0,97061.0,0.02222407]
[1739289858789,0.43205657,97062.0,97061.0,0.02222407]
[1739289859187,0.17551163,97062.0,97061.0,0.02222407]
[1739289859369,0.33005163,97062.0,97061.0,0.02222407]
[1739289859570,0.43156317,97062.0,97061.0,0.02222407]
[1739289859794,0.43156317,97062.0,97061.0,0.00722407]
[1739289859998,0.43156317,97062.0,97061.0,0.00822407]
[1739289860262,0.43156317,97062.0,97061.0,0.01122407]
[1739289860427,0.43156317,97062.0,97061.0,0.00322407]
[1739289860876,0.43156317,97062.0,97061.0,0.00822407]
[1739289861095,0.43156317,97062.0,97061.0,0.00522407]
[1739289861284,0.43156317,97062.0,97061.0,0.00022407]
[1739289862413,0.43156317,97062.0,97061.0,0.00522407]
[1739289862576,0.43156317,97062.0,97061.0,0.00922407]
[1739289862950,0.43156317,97062.0,97061.0,0.01322407]
[1739289863158,0.43156317,97062.0,97061.0,0.00022407]
[1739289863559,0.43156317,97062.0,97061.0,0.00122407]
[1739289863760,0.43156317,97062.0,97061.0,0.00022407]
[1739289863981,0.45203818,97062.0,97061.0,0.00022407]
[1739289864188,0.45203818,97062.0,97061.0,0.01022407]
[1739289864591,0.77763818,97062.0,97061.0,0.01022407]
[1739289865555,0.77763818,97062.0,97061.0,0.00022407]
[1739289865853,0.154579,97038.0,97033.0,0.03901727]
[1739289866196,0.154579,97038.0,97030.0,0.154591]
[1739289866420,0.0360679,97037.0,97030.0,0.154591]
[1739289866632,0.154579,97038.0,97030.0,0.154591]
[1739289867007,0.154584,97035.0,97030.0,0.00013284]
[1739289867201,0.14259424,97050.0,97030.0,0.00013284]
[1739289867408,0.154581,97037.0,97030.0,0.01513284]
[1739289867613,0.154589,97031.0,97030.0,0.01513284]
[1739289868268,0.154588,97032.0,97030.0,0.01513284]
[1739289868460,0.23582452,97037.0,97030.0,0.01513284]
[1739289868639,0.0184373,97037.0,97030.0,0.01513284]
[1739289868840,0.154585,97034.0,97030.0,0.00013284]
[1739289869042,0.154585,97034.0,97030.0,0.00713284]
[1739289869384,0.154585,97034.0,97030.0,0.01513284]
[1739289869559,0.154585,97034.0,97030.0,0.02213284]
[1739289869775,0.154583,97036.0,97030.0,0.00013284]
[1739289869976,0.2112615,97035.0,97030.0,0.01513284]
[1739289870128,0.154585,97034.0,97030.0,0.01513284]
[1739289870535,0.154585,97034.0,97030.0,0.00713284]
[1739289871083,0.154586,97033.0,97030.0,0.00713284]
[1739289871382,0.2627905,97035.0,97030.0,0.00713284]
[1739289871592,0.20039456,97034.0,97030.0,0.00713284]
[1739289871928,0.20039456,97034.0,97030.0,0.00013284]
[1739289872133,0.20039456,97034.0,97030.0,0.00713284]
[1739289872552,0.2061,97040.0,97030.0,0.01513284]
[1739289872758,0.154584,97035.0,97030.0,0.01513284]
[1739289872966,0.154584,97035.0,97030.0,0.00013284]
[1739289873240,0.154584,97035.0,97030.0,0.01513284]
[1739289873523,0.154584,97035.0,97030.0,0.02213284]
[1739289873664,0.22523805,97044.0,97030.0,0.00013284]
[1739289873870,0.154586,97034.0,97030.0,0.00713284]
[1739289874103,0.04703359,97043.0,97030.0,0.00713284]
[1739289874303,0.154587,97033.0,97030.0,0.00713284]
[1739289874716,0.15457,97043.0,97034.0,0.154583]
[1739289874946,0.206095,97043.0,97031.0,0.154588]
[1739289875172,0.0001066,97034.0,97030.0,0.0003567]
[1739289875487,0.0001066,97034.0,97030.0,0.1619477]
[1739289875686,0.0001066,97034.0,97033.0,0.154586]
[1739289875867,0.0001066,97034.0,97032.0,0.154588]
[1739289876039,0.0001066,97034.0,97031.0,0.160589]
[1739289876240,0.0001066,97034.0,97031.0,0.006]
[1739289876568,0.0001066,97034.0,97030.0,0.0153567]
[1739289876773,0.0001066,97034.0,97030.0,0.1769457]
[1739289876971,0.0001066,97034.0,97030.0,0.0003567]
[1739289877175,0.0001066,97034.0,97032.0,0.154586]
[1739289877775,0.0001066,97034.0,97033.0,0.154586]
[1739289877983,0.0001066,97034.0,97031.0,0.169588]
[1739289878246,0.0001066,97034.0,97031.0,0.176588]
[1739289878659,0.0001066,97034.0,97031.0,0.169588]
[1739289878863,0.0001066,97034.0,97033.0,0.007]
[1739289879071,0.0001066,97034.0,97033.0,0.161586]
[1739289879277,0.0001066,97034.0,97033.0,0.154586]
[1739289880113,0.0001066,97034.0,97033.0,0.4576593]
[1739289880318,0.0001066,97034.0,97033.0,0.39498965]
[1739289880731,0.0001066,97034.0,97033.0,0.40998965]
[1739289880938,0.0001066,97034.0,97033.0,0.25540365]
[1739289881121,0.0001066,97034.0,97033.0,0.1379]
[1739289881367,0.0001066,97034.0,97033.0,0.1309]
[1739289881777,0.0001066,97034.0,97033.0,0.1379]
[1739289882069,0.0001066,97034.0,97033.0,0.1309]
[1739289882267,0.0001066,97034.0,97033.0,0.0549]
[1739289882500,0.0001066,97034.0,97033.0,0.0699]
[1739289883153,0.0001066,97034.0,97033.0,0.209486]
[1739289883347,0.15457,97043.0,97033.0,0.0769]
[1739289884257,0.154573,97042.0,97033.0,0.0769]
[1739289884468,0.154573,97042.0,97033.0,0.0619]
[1739289884661,0.154573,97042.0,97033.0,0.0479]
[1739289884797,0.14259424,97050.0,97033.0,0.0549]
[1739289885227,0.206081,97049.0,97033.0,0.0479]
[1739289885427,0.03673235,97048.0,97033.0,0.007]
[1739289885667,0.154583,97036.0,97030.0,0.0003567]
[1739289885827,0.206087,97046.0,97030.0,0.0003567]
[1739289886024,0.154576,97040.0,97033.0,0.02]
[1739289886233,0.154579,97038.0,97033.0,0.015]
[1739289886456,0.154578,97039.0,97033.0,0.015]
[1739289886655,0.154579,97038.0,97033.0,0.005]
[1739289887865,0.154579,97038.0,97033.0,0.015]
[1739289888238,0.154576,97040.0,97033.0,0.022]
[1739289888633,0.0001066,97038.0,97033.0,0.015]
[1739289888843,0.0001066,97038.0,97033.0,0.022]
[1739289889240,0.0001066,97038.0,97033.0,0.015]
[1739289889440,0.0001066,97038.0,97033.0,0.022]
[1739289889663,0.0001066,97038.0,97033.0,0.015]
[1739289890047,0.0001066,97038.0,97030.0,0.1549467]
[1739289890248,0.0001066,97038.0,97030.0,0.0003567]
[1739289890563,0.0001066,97038.0,97033.0,0.015]
[1739289891007,0.0001066,97038.0,97030.0,0.0003567]
[1739289891512,0.0001066,97038.0,97030.0,0.0153567]
[1739289891724,0.0001066,97038.0,97033.0,0.007]
[1739289892141,0.0001066,97038.0,97030.0,0.0003567]
[1739289892350,0.0001066,97038.0,97030.0,0.0073567]
[1739289892551,0.154585,97034.0,97030.0,0.0073567]
[1739289892750,0.17069736,97037.0,97030.0,0.0003567]
[1739289892982,0.154582,97036.0,97033.0,0.007]
[1739289893189,0.01611636,97037.0,97030.0,0.0003567]
[1739289893379,0.154581,97036.0,97033.0,0.015]
[1739289893801,0.154581,97036.0,97030.0,0.0003567]
[1739289894325,0.154581,97036.0,97033.0,0.015]
[1739289894530,0.0001066,97038.0,97033.0,0.015]
[1739289894711,0.0001066,97038.0,97031.0,0.0816]
[1739289895238,0.0001066,97038.0,97033.0,0.007]
[1739289895408,0.0001066,97038.0,97031.0,0.0816]
[1739289895842,0.0001066,97038.0,97033.0,0.007]
[1739289895961,0.0001066,97038.0,97031.0,0.236188]
[1739289896163,0.0001066,97038.0,97031.0,0.0816]
[1739289896412,0.0001066,97038.0,97031.0,0.0886]
[1739289896996,0.0001066,97038.0,97033.0,0.015]
[1739289897418,0.1546856,97038.0,97033.0,0.015]
[1739289897739,0.0001066,97038.0,97031.0,0.0886]
[1739289897909,0.154581,97036.0,97031.0,0.1036]
[1739289898167,0.2062126,97038.0,97031.0,0.0966]
[1739289898344,0.15458,97037.0,97033.0,0.007]
[1739289898523,0.05668906,97036.0,97031.0,0.0816]
[1739289898927,0.05668906,97036.0,97031.0,0.0886]
[1739289899354,0.05668906,97036.0,97031.0,0.0816]
[1739289899782,0.05668906,97036.0,97033.0,0.007]
[1739289900197,0.21127006,97036.0,97033.0,0.007]
[1739289900410,0.0001066,97038.0,97033.0,0.022]
[1739289900861,0.154584,97034.0,97033.0,0.022]
[1739289901092,0.154584,97034.0,97033.0,0.007]
[1739289901312,0.154584,97034.0,97033.0,0.022]
[1739289901515,0.25708765,97034.0,97033.0,0.022]
[1739289901736,0.35218878,97034.0,97033.0,0.007]
[1739289902112,0.35218878,97034.0,97033.0,0.021]
[1739289902339,0.35218878,97034.0,97033.0,0.014]
[1739289902725,0.37059196,97034.0,97033.0,0.02]
[1739289902923,0.52059196,97034.0,97033.0,0.02]
[1739289903134,0.59609196,97034.0,97033.0,0.014]
[1739289903537,0.304588,97032.0,97031.0,0.00022386]
[1739289903777,0.49693045,97032.0,97031.0,0.00022386]
[1739289905369,0.49693045,97032.0,97031.0,0.00322386]
[1739289905892,0.49693045,97032.0,97003.0,0.00545276]
[1739289905893,0.154625,97009.0,97003.0,0.00545276]
[1739289906092,0.154625,97009.0,97003.0,0.00554889]
[1739289906395,0.154627,97008.0,97003.0,0.00554889]
[1739289906523,0.0154627,97007.0,97003.0,0.00554889]
[1739289906962,0.14259424,97030.0,97003.0,0.00554889]
[1739289907175,0.154618,97014.0,97003.0,0.16018289]
[1739289907383,0.15,97029.0,97004.0,0.0798]
[1739289907605,0.206126,97028.0,97006.0,0.154628]
[1739289907934,0.154615,97015.0,97004.0,0.234431]
[1739289908085,0.206125,97029.0,97017.0,0.154611]
[1739289908293,0.154594,97028.0,97018.0,0.23441]
[1739289908499,0.154603,97023.0,97018.0,0.0798]
[1739289908896,0.154596,97027.0,97018.0,0.0798]
[1739289909100,0.154598,97026.0,97018.0,0.0798]
[1739289909269,0.01840318,97034.0,97018.0,0.0798]
[1739289909457,0.154598,97026.0,97018.0,0.0838]
[1739289909688,0.206115,97033.0,97018.0,0.0798]
[1739289909893,0.154596,97027.0,97018.0,0.0798]
[1739289910127,0.1906681,97026.0,97018.0,0.0798]
[1739289910319,0.1906681,97026.0,97018.0,0.0948]
[1739289910587,0.154599,97025.0,97018.0,0.0908]
[1739289910997,0.154599,97025.0,97018.0,0.0798]
[1739289911202,0.154599,97025.0,97018.0,0.0878]
[1739289911407,0.07455113,97024.0,97018.0,0.0878]
[1739289911608,0.07455113,97024.0,97018.0,0.0798]
[1739289911932,0.154593,97029.0,97018.0,0.0898]
[1739289912175,0.206113,97034.0,97018.0,0.0918]
[1739289912384,0.14259424,97030.0,97018.0,0.0918]
[1739289912558,0.154601,97024.0,97018.0,0.0898]
[1739289912758,0.05033182,97023.0,97018.0,0.0898]
[1739289912954,0.05033182,97023.0,97018.0,0.0948]
[1739289913243,0.05033182,97023.0,97018.0,0.0848]
[1739289913434,0.05033182,97023.0,97018.0,0.0948]
[1739289913834,0.05033182,97023.0,97018.0,0.0898]
[1739289914037,0.05033182,97023.0,97018.0,0.0798]
[1739289914238,0.05033182,97023.0,97018.0,0.0938]
[1739289914471,0.04110558,97022.0,97018.0,0.0938]
[1739289914967,0.14259424,97030.0,97018.0,0.0828]
[1739289915118,0.14259424,97040.0,97018.0,0.0828]
[1739289915321,0.154598,97026.0,97018.0,0.08302386]
[1739289915736,0.154594,97028.0,97018.0,0.08302386]
[1739289915936,0.154582,97036.0,97023.0,0.203902]
[1739289916140,0.154584,97035.0,97023.0,0.0493]
[1739289916408,0.154585,97034.0,97023.0,0.0493]
[1739289916742,0.154586,97033.0,97023.0,0.0493]
[1739289916953,0.206114,97034.0,97023.0,0.0493]
[1739289917172,0.19382884,97033.0,97023.0,0.0543]
[1739289917382,0.15459,97031.0,97023.0,0.0543]
[1739289917528,0.19382884,97033.0,97023.0,0.0573]
[1739289917731,0.03924084,97033.0,97023.0,0.0523]
[1739289918147,0.154587,97033.0,97023.0,0.0493]
[1739289918552,0.206109,97036.0,97023.0,0.0603]
[1739289918807,0.206111,97035.0,97023.0,0.0603]
[1739289919012,0.14259424,97033.0,97023.0,0.011]
[1739289919169,0.01862944,97032.0,97023.0,0.011]
[1739289919778,0.01862944,97032.0,97023.0,0.007]
[1739289919979,0.154599,97025.0,97023.0,0.01]
[1739289920211,0.154599,97025.0,97023.0,0.007]
[1739289920409,0.154599,97025.0,97018.0,0.08002386]
[1739289920605,0.0566845,97024.0,97023.0,0.009]
[1739289920850,0.2112845,97024.0,97023.0,0.005]
[1739289921054,0.0566845,97024.0,97018.0,0.00022386]
[1739289921289,0.1546,97024.0,97023.0,0.006]
[1739289921507,0.154608,97019.0,97018.0,0.00022386]
[1739289921702,0.01862944,97032.0,97023.0,0.006]
[1739289921934,0.30862265,97031.0,97023.0,0.006]
[1739289922123,0.1546,97024.0,97023.0,0.006]
[1739289922329,0.20092226,97024.0,97023.0,0.006]
[1739289923066,0.154608,97019.0,97018.0,0.01322386]
[1739289923272,0.154608,97019.0,97018.0,0.01922386]
[1739289923704,0.154608,97019.0,97018.0,0.01322386]
[1739289923905,0.154608,97019.0,97018.0,0.00022386]
[1739289924107,0.23654193,97019.0,97018.0,0.00022386]
[1739289924503,0.23654193,97019.0,97018.0,0.00722386]
[1739289925087,0.23654193,97019.0,97018.0,0.02222386]
[1739289925292,0.154608,97019.0,97018.0,0.02222386]
[1739289927138,0.17787872,97019.0,97018.0,0.02222386]
[1739289936526,0.154608,97019.0,97018.0,0.02222386]
[1739289939756,0.1547147,97019.0,97018.0,0.02222386]
[1739289950660,0.1547147,97019.0,97018.0,0.00722386]
[1739289950885,0.23905926,97019.0,97018.0,0.00922386]